[Event "French Top 16-A 2024"]
[Site "Chartres"]
[Date "2024.06.05"]
[Round "7.4"]
[White "Ganguly, Surya Shekhar"]
[Black "Wirig, Anthony"]
[Result "1-0"]
[ECO "B40"]
[WhiteElo "2576"]
[BlackElo "2453"]
[Annotator "TA"]
[PlyCount "55"]
[EventDate "2024.06.01"]
[EventType "team-tourn"]
[EventCountry "FRA"]
[SourceTitle "playchess.com"]
[Source "ChessBase"]
[SourceQuality "1"]
[TimeControl "40/5400+30:1800+30"]

{[%evp 9,55,0,3,0,0,0,18,18,32,29,62,52,39,43,71,50,55,52,97,90,102,91,95,93,109,108,159,151,306,299,485,252,494,487,1136,602,1266,859,29995,29994,29994,29995,29995,29996,29996,29997,29997,310]} 1. e4 {[%emt 0:00:09]} c5 {[%emt 0:00:39]} 2. Nf3 {[%emt 0:00:12]} e6 {[%emt 0:00:24]} 3. d4 {[%emt 0:00:14]} cxd4 {[%emt 0:00:07]} 4. Qxd4 {[%emt 0:00:07]} Nc6 {[%emt 0:02:40]} 5. Qe3 {[%emt 0:00:07]} Nf6 {[%emt 0:07:19]} 6. Nc3 {[%emt 0:00:20]} Bb4 {[%emt 0:00:48]} 7. a3 {[%emt 0:00:42]} Bxc3+ {[%emt 0:21:13]} 8. Qxc3 {[%emt 0:01:21] The position is equal.} h6 {[%emt 0:00:03][%cal Oe8g8] Prevents Bg5} 9. e5 {[%emt 0:11:59]} Ne4 {[%emt 0:06:09]} 10. Qd3 {[%emt 0:03:06]} Qa5+ {[%emt 0:15:18]} 11. c3 {[%emt 0:03:24]} Ng5 {[%emt 0:02:59]} 12. Bxg5 {[%emt 0:07:07]} hxg5 {[%emt 0:00:41]} 13. Qe4 $36 {[%emt 0:00:51][%cal Oe1c1][%mdl 2048] White has some pressure.} ({Reject} 13. Nxg5 Qxe5+ (13... Nxe5 14. Qg3 $14) 14. Qe3 Qxe3+ (14... Rxh2 $2 {loses.} 15. Qxe5 Nxe5 16. Rxh2 $18) 15. fxe3 Ne5 $15) 13... g4 {[%emt 0:06:01]} 14. Qxg4 {[%emt 0:01:25]} Nxe5 {[%emt 0:00:21]} 15. Qxg7 {[%emt 0:00:40]} Nxf3+ {[%emt 0:00:06]} 16. gxf3 {[%emt 0:00:06]} Qh5 {[%emt 0:00:24]} 17. Qd4 {[%emt 0:02:31] Dodges b6} Qh4 {[%emt 0:08:17]} ({Black should try} 17... d6) 18. f4 $16 {[%emt 0:01:10] White is more active.} Rh5 $2 {[%emt 0:01:23] [#]} (18... d5 $16 19. O-O-O Ke7 20. Qb4+ Ke8) 19. Rg1 $1 $18 {[%emt 0:01:37]} Rd5 $2 {[%emt 0:04:58]} (19... Ke7 20. Rd1 Rh8) 20. Rg8+ {[%emt 0:14:50]} Ke7 {[%emt 0:00:02]} 21. Qg7 {[%emt 0:00:24] Intending Qf8+ and mate.} Kd6 {[%emt 0:08:35]} (21... Qxf4 $142 22. Qf8+ Kf6 23. Qd8+ Ke5 24. Qc7+ d6) 22. Bg2 {[%emt 0:05:57]} Rf5 {[%emt 0:04:34]} 23. Be4 {[%emt 0:01:07] [#] White wants to mate with Rd1+.} Rxf4 {[%emt 0:03:01]} 24. Rd1+ {[%emt 0:04:33] White mates.} Ke7 {[%emt 0:02:01][%cal Bd6e7,Be7f6,Bf6e5,Be5e4][%mdl 32]} 25. Qf8+ {[%emt 0:00:06]} Kf6 {[%emt 0:00:02]} 26. Rg6+ {[%emt 0:00:07]} Ke5 {[%emt 0:00:04]} 27. Qc5+ {[%emt 0:00:06]} Kxe4 {[%emt 0:02:56]} 28. Rd4+ {[%emt 0:00:05] Black did not feel at home in the position after the opening.   Weighted Error Value: White=0.41/Black=0.63.  Mistake:       	---       	Black=4      Inaccurate:     	White=1     	Black=4      OK:         	White=8     	Black=4      Best:        	White=2     	Black=2      Strong:       	White=1     	---} 1-0

[Event "French Top 16-A 2024"]
[Site "Chartres"]
[Date "2024.06.05"]
[Round "7.4"]
[White "Ramirez Garcia, Jorge Alberto"]
[Black "Dumas, Charles"]
[Result "0-1"]
[ECO "B22"]
[WhiteElo "2266"]
[BlackElo "2256"]
[Annotator "RC"]
[PlyCount "94"]
[EventDate "2024.06.01"]
[EventType "team-tourn"]
[EventCountry "FRA"]
[SourceTitle "playchess.com"]
[Source "ChessBase"]
[SourceQuality "1"]
[TimeControl "40/5400+30:1800+30"]

1. e4 {[%emt 0:03:57]} c5 {[%emt 0:00:04]} 2. Nf3 {[%emt 0:00:07]} Nc6 {[%emt 0:00:11]} 3. c3 {[%emt 0:00:06]} d5 {[%emt 0:00:25]} 4. exd5 {[%emt 0:00:04]} Qxd5 {[%emt 0:00:03]} 5. d4 {[%emt 0:00:06]} Bf5 {[%emt 0:00:22]} 6. Be3 {[%emt 0:00:32]} cxd4 {[%emt 0:00:41]} 7. Nxd4 {[%emt 0:00:54]} Nf6 {[%emt 0:00:47]} 8. Nxf5 {[%emt 0:00:09]} Qxf5 {[%emt 0:00:06]} 9. Qd3 {[%emt 0:09:02]} Qxd3 {[%emt 0:09:38]} 10. Bxd3 {[%emt 0:00:04]} O-O-O {[%emt 0:01:31]} 11. Ke2 {[%emt 0:05:27]} Nd5 {[%emt 0:05:12]} 12. Nd2 {[%emt 0:06:22]} e6 {[%emt 0:09:59]} 13. Rhd1 {[%emt 0:12:52]} Nxe3 {[%emt 0:02:50]} 14. fxe3 {[%emt 0:08:20]} Ne5 {[%emt 0:19:29]} 15. Be4 {[%emt 0:00:28]} Bc5 {[%emt 0:04:45]} 16. b4 {[%emt 0:05:51]} Bb6 {[%emt 0:00:59]} 17. c4 {[%emt 0:00:57]} Rd7 {[%emt 0:12:18]} 18. c5 {[%emt 0:02:14]} Bc7 {[%emt 0:01:59]} 19. Nb3 {[%emt 0:09:52]} f5 {[%emt 0:05:04]} 20. Bc2 {[%emt 0:05:47]} Nc6 {[%emt 0:01:34]} 21. Rxd7 {[%emt 0:13:02]} Kxd7 {[%emt 0:00:06]} 22. Rd1+ {[%emt 0:00:08]} Ke7 {[%emt 0:04:35]} 23. b5 {[%emt 0:06:14]} Nb4 {[%emt 0:02:04]} 24. Bb1 {[%emt 0:00:13]} Bxh2 {[%emt 0:06:06]} 25. e4 {[%emt 0:00:23]} fxe4 {[%emt 0:01:48]} 26. Bxe4 {[%emt 0:00:26]} Nxa2 {[%emt 0:00:24]} 27. Rd3 {[%emt 0:00:52]} Be5 {[%emt 0:01:01]} 28. Bxb7 {[%emt 0:00:35]} Nc3+ {[%emt 0:00:50]} 29. Ke3 {[%emt 0:03:49]} Nxb5 {[%emt 0:00:07]} 30. Na5 {[%emt 0:00:19]} Kf6 {[%emt 0:04:16]} 31. Rd7 {[%emt 0:00:02]} h5 {[%emt 0:00:41]} 32. Be4 {[%emt 0:03:25]} h4 {[%emt 0:01:08]} 33. Nc6 {[%emt 0:00:36]} h3 {[%emt 0:00:51]} 34. Nxe5 {[%emt 0:02:01]} Kxe5 {[%emt 0:00:17]} 35. gxh3 {[%emt 0:01:39]} Rxh3+ {[%emt 0:00:29]} 36. Bf3 {[%emt 0:00:02]} g5 {[%emt 0:00:44]} 37. Kf2 {[%emt 0:01:08]} Nd4 {[%emt 0:02:02]} 38. Bg4 {[%emt 0:00:43]} Rc3 {[%emt 0:00:09]} 39. Rxa7 {[%emt 0:00:32]} Kf4 {[%emt 0:02:32]} 40. Ra4 {[%emt 0:00:33]} Kxg4 {[%emt 0:01:14]} 41. Rxd4+ {[%emt 0:30:11]} Kf5 {[%emt 0:30:05]} 42. Rd8 {[%emt 0:00:49]} Rxc5 {[%emt 0:00:04]} 43. Ke3 {[%emt 0:00:13]} Ra5 {[%emt 0:00:00]} 44. Rf8+ {[%emt 0:00:00]} Kg4 {[%emt 0:00:00]} 45. Rf6 {[%emt 0:00:00]} Re5+ {[%emt 0:03:30]} 46. Kd2 {[%emt 0:00:00]} Kh4 {[%emt 0:00:00]} 47. Rf1 {[%emt 0:00:00]} g4 {[%emt 0:00:00]} 0-1

[Event "French Top 16-A 2024"]
[Site "Chartres"]
[Date "2024.06.05"]
[Round "7.5"]
[White "Bonte, Andrei-Mihai"]
[Black "Sohier, Julien"]
[Result "1-0"]
[ECO "D02"]
[WhiteElo "2270"]
[BlackElo "2214"]
[Annotator "RC"]
[PlyCount "129"]
[EventDate "2024.06.01"]
[EventType "team-tourn"]
[EventCountry "FRA"]
[SourceTitle "playchess.com"]
[Source "ChessBase"]
[SourceQuality "1"]
[TimeControl "40/5400+30:1800+30"]

1. d4 {[%emt 0:00:03]} d5 {[%emt 0:00:08]} 2. Nf3 {[%emt 0:00:09]} Nf6 {[%emt 0:00:04]} 3. c3 {[%emt 0:00:06]} e6 {[%emt 0:01:50]} 4. Bf4 {[%emt 0:00:07]} Bd6 {[%emt 0:01:21]} 5. e3 {[%emt 0:00:33]} Bxf4 {[%emt 0:06:15]} 6. exf4 {[%emt 0:00:04]} O-O {[%emt 0:00:31]} 7. Bd3 {[%emt 0:00:21]} c5 {[%emt 0:02:10]} 8. dxc5 {[%emt 0:03:21]} Qc7 {[%emt 0:00:27]} 9. g3 {[%emt 0:00:30]} Qxc5 {[%emt 0:00:24]} 10. O-O {[%emt 0:00:15]} b6 {[%emt 0:04:44]} 11. Qe2 {[%emt 0:03:29]} a5 {[%emt 0:02:43]} 12. Na3 {[%emt 0:01:08]} Ba6 {[%emt 0:03:35]} 13. Nb5 {[%emt 0:00:32]} Bxb5 {[%emt 0:01:07]} 14. Bxb5 {[%emt 0:00:04]} Nbd7 {[%emt 0:01:45]} 15. a4 {[%emt 0:04:44]} Rac8 {[%emt 0:04:26]} 16. Rfe1 {[%emt 0:05:47]} Rfd8 {[%emt 0:04:48]} 17. Rad1 {[%emt 0:06:13]} Qc7 {[%emt 0:05:12]} 18. Nd4 {[%emt 0:04:02]} g6 {[%emt 0:03:51]} 19. Nxe6 {[%emt 0:36:42]} fxe6 {[%emt 0:01:20]} 20. Qxe6+ {[%emt 0:00:03]} Kg7 {[%emt 0:13:32]} 21. Qe7+ {[%emt 0:03:49]} Kg8 {[%emt 0:00:29]} 22. Bxd7 {[%emt 0:06:17]} Nxd7 {[%emt 0:01:33]} 23. Qe6+ {[%emt 0:05:12]} Kf8 {[%emt 0:08:18]} 24. f5 {[%emt 0:07:05]} Re8 {[%emt 0:12:05]} 25. Qxd5 {[%emt 0:00:11]} Nf6 {[%emt 0:01:17]} 26. Rxe8+ {[%emt 0:04:36]} Rxe8 {[%emt 0:00:17]} 27. Qd6+ {[%emt 0:01:29]} Qe7 {[%emt 0:06:47]} 28. fxg6 {[%emt 0:00:48]} hxg6 {[%emt 0:00:49]} 29. Qxb6 {[%emt 0:00:08]} Qe5 {[%emt 0:02:39]} 30. h3 {[%emt 0:02:11]} Kf7 {[%emt 0:02:06]} 31. Rd6 {[%emt 0:01:32]} Qf5 {[%emt 0:04:08]} 32. Qb3+ {[%emt 0:01:25]} Kg7 {[%emt 0:00:38]} 33. Qb7+ {[%emt 0:00:39]} Kf8 {[%emt 0:02:14]} 34. Qb6 {[%emt 0:02:42]} Kf7 {[%emt 0:01:39]} 35. Qd4 {[%emt 0:00:28]} Re7 {[%emt 0:01:22]} 36. Kg2 {[%emt 0:00:22]} Re5 {[%emt 0:01:13]} 37. b4 {[%emt 0:00:37]} axb4 {[%emt 0:00:27]} 38. cxb4 {[%emt 0:00:02]} Qe4+ {[%emt 0:00:40]} 39. Qxe4 {[%emt 0:00:10]} Rxe4 {[%emt 0:00:05]} 40. Rb6 {[%emt 0:00:28]} Nd5 {[%emt 0:00:06]} 41. Rb7+ {[%emt 0:06:41]} Ke6 {[%emt 0:01:54]} 42. a5 {[%emt 0:06:44]} Nxb4 {[%emt 0:02:20]} 43. Rb6+ {[%emt 0:00:12]} Kf7 {[%emt 0:03:07]} 44. a6 {[%emt 0:00:23]} Nd5 {[%emt 0:08:50]} 45. Rb5 {[%emt 0:04:46]} Ke6 {[%emt 0:02:02]} 46. Ra5 {[%emt 0:00:51]} Nc7 {[%emt 0:01:28]} 47. a7 {[%emt 0:00:15]} Na8 {[%emt 0:00:11]} 48. Ra6+ {[%emt 0:00:14]} Kf7 {[%emt 0:00:16]} 49. h4 {[%emt 0:00:32]} Rb4 {[%emt 0:02:08]} 50. Ra2 {[%emt 0:01:33]} Kf6 {[%emt 0:02:14]} 51. f3 {[%emt 0:00:14]} Rb3 {[%emt 0:01:54]} 52. g4 {[%emt 0:00:06]} Rb4 {[%emt 0:01:55]} 53. Kg3 {[%emt 0:00:24]} Kg7 {[%emt 0:00:36]} 54. Ra5 {[%emt 0:00:54]} Kf7 {[%emt 0:00:45]} 55. h5 {[%emt 0:01:06]} gxh5 {[%emt 0:00:05]} 56. Rxh5 {[%emt 0:00:02]} Kg7 {[%emt 0:00:13]} 57. Ra5 {[%emt 0:01:18]} Kg6 {[%emt 0:00:52]} 58. Ra6+ {[%emt 0:00:57]} Kg7 {[%emt 0:00:04]} 59. f4 {[%emt 0:00:17]} Rc4 {[%emt 0:02:54]} 60. f5 {[%emt 0:00:20]} Rb4 {[%emt 0:01:10]} 61. Kh4 {[%emt 0:00:15]} Rc4 {[%emt 0:00:22]} 62. Kh5 {[%emt 0:01:01]} Rc1 {[%emt 0:02:28]} 63. Rg6+ {[%emt 0:02:07]} Kh7 {[%emt 0:01:56]} 64. Rd6 {[%emt 0:00:47]} Rc7 {[%emt 0:00:23]} 65. g5 {[%emt 0:01:23]} 1-0

[Event "French Top 16-A 2024"]
[Site "Chartres"]
[Date "2024.06.05"]
[Round "7.6"]
[White "Barseghyan, Harutyun"]
[Black "Demuth, Adrien"]
[Result "1/2-1/2"]
[ECO "A41"]
[WhiteElo "2431"]
[BlackElo "2505"]
[Annotator "RC"]
[PlyCount "117"]
[EventDate "2024.06.01"]
[EventType "team-tourn"]
[EventCountry "FRA"]
[SourceTitle "playchess.com"]
[Source "ChessBase"]
[SourceQuality "1"]
[TimeControl "40/5400+30:1800+30"]

1. d4 {[%emt 0:09:32]} g6 {[%emt 0:00:10]} 2. Nf3 {[%emt 0:02:00]} Bg7 {[%emt 0:00:07]} 3. c4 {[%emt 0:02:03]} d6 {[%emt 0:00:18]} 4. e4 {[%emt 0:08:38]} Bg4 {[%emt 0:02:29]} 5. Be2 {[%emt 0:00:54]} e5 {[%emt 0:03:17]} 6. d5 {[%emt 0:03:50]} Bxf3 {[%emt 0:01:10]} 7. Bxf3 {[%emt 0:00:09]} Nd7 {[%emt 0:00:06]} 8. g3 {[%emt 0:02:32]} h5 {[%emt 0:04:35]} 9. h4 {[%emt 0:11:28]} Bh6 {[%emt 0:01:14]} 10. Nd2 {[%emt 0:00:11]} Ngf6 {[%emt 0:01:41]} 11. Qe2 {[%emt 0:00:31]} a5 {[%emt 0:06:31]} 12. b3 {[%emt 0:00:53]} Qe7 {[%emt 0:14:27]} 13. Rb1 {[%emt 0:01:18]} Kf8 {[%emt 0:02:42]} 14. Kf1 {[%emt 0:03:21]} Kg7 {[%emt 0:00:33]} 15. Kg2 {[%emt 0:00:57]} c6 {[%emt 0:10:14]} 16. a3 {[%emt 0:01:57]} Rhc8 {[%emt 0:01:16]} 17. Re1 {[%emt 0:02:59]} cxd5 {[%emt 0:04:46]} 18. cxd5 {[%emt 0:07:54]} Rc2 {[%emt 0:01:30]} 19. Qd1 {[%emt 0:12:57]} Rac8 {[%emt 0:02:15]} 20. b4 {[%emt 0:00:12]} a4 {[%emt 0:11:14]} 21. Re2 {[%emt 0:00:44]} Nb6 {[%emt 0:04:31]} 22. Bb2 {[%emt 0:00:18]} Qc7 {[%emt 0:01:13]} 23. Kg1 {[%emt 0:05:43]} Bxd2 {[%emt 0:09:23]} 24. Rxd2 {[%emt 0:01:13]} Rxd2 {[%emt 0:00:05]} 25. Qxd2 {[%emt 0:00:02]} Nc4 {[%emt 0:00:04]} 26. Qe2 {[%emt 0:06:10]} Nxb2 {[%emt 0:00:11]} 27. Qxb2 {[%emt 0:00:02]} Qc3 {[%emt 0:09:35]} 28. Kg2 {[%emt 0:00:02]} Qxb2 {[%emt 0:02:28]} 29. Rxb2 {[%emt 0:00:01]} Rc3 {[%emt 0:00:48]} 30. Ra2 {[%emt 0:00:01]} Kf8 {[%emt 0:00:38]} 31. Bd1 {[%emt 0:00:57]} Nxe4 {[%emt 0:00:54]} 32. Bxa4 {[%emt 0:00:01]} Nf6 {[%emt 0:01:21]} 33. Bd1 {[%emt 0:00:30]} Ke7 {[%emt 0:01:47]} 34. a4 {[%emt 0:02:20]} Rc1 {[%emt 0:00:29]} 35. Bb3 {[%emt 0:01:52]} Rc3 {[%emt 0:01:30]} 36. Rb2 {[%emt 0:00:20]} Kd8 {[%emt 0:01:06]} 37. a5 {[%emt 0:00:01]} Kc7 {[%emt 0:00:51]} 38. b5 {[%emt 0:01:50]} Kb8 {[%emt 0:00:17]} 39. Bd1 {[%emt 0:06:08]} Nd7 {[%emt 0:01:12]} 40. f4 {[%emt 0:06:17]} e4 {[%emt 0:00:54]} 41. f5 {[%emt 0:08:58]} Rd3 {[%emt 0:04:37]} 42. fxg6 {[%emt 0:00:23]} fxg6 {[%emt 0:00:21]} 43. Be2 {[%emt 0:06:37]} Rxd5 {[%emt 0:10:16]} 44. Kf2 {[%emt 0:00:21]} Rd4 {[%emt 0:04:48]} 45. Ke3 {[%emt 0:10:36]} Ra4 {[%emt 0:00:07]} 46. Rd2 {[%emt 0:00:00]} Kc7 {[%emt 0:03:02]} 47. Rd5 {[%emt 0:00:05]} Nc5 {[%emt 0:08:17]} 48. a6 {[%emt 0:01:20]} bxa6 {[%emt 0:00:45]} 49. bxa6 {[%emt 0:00:01]} Ra3+ {[%emt 0:00:32]} 50. Kf4 {[%emt 0:00:59]} Ne6+ {[%emt 0:01:45]} 51. Kxe4 {[%emt 0:00:07]} Nc5+ {[%emt 0:00:03]} 52. Kf4 {[%emt 0:00:43]} Ne6+ {[%emt 0:00:03]} 53. Ke4 {[%emt 0:00:30]} Nc5+ {[%emt 0:00:38]} 54. Kf4 {[%emt 0:01:21]} Kc6 {[%emt 0:01:00]} 55. Rd1 {[%emt 0:03:49]} Ne6+ {[%emt 0:00:03]} 56. Ke4 {[%emt 0:00:22]} Nc5+ {[%emt 0:00:04]} 57. Kf4 {[%emt 0:00:14]} Ne6+ {[%emt 0:01:47]} 58. Ke4 {[%emt 0:00:01]} Nc5+ {[%emt 0:00:53]} 59. Kf4 {[%emt 0:00:02]} 1/2-1/2

[Event "French Top 16-A 2024"]
[Site "Chartres"]
[Date "2024.06.05"]
[Round "7.6"]
[White "De Balmann, Marc"]
[Black "Warnier, Yanis"]
[Result "0-1"]
[ECO "A07"]
[WhiteElo "2151"]
[BlackElo "2171"]
[Annotator "RC"]
[PlyCount "52"]
[EventDate "2024.06.01"]
[EventType "team-tourn"]
[EventCountry "FRA"]
[SourceTitle "playchess.com"]
[Source "ChessBase"]
[SourceQuality "1"]
[TimeControl "40/5400+30:1800+30"]

1. Nf3 {[%emt 0:00:03]} Nf6 {[%emt 0:00:18]} 2. g3 {[%emt 0:00:07]} d5 {[%emt 0:00:06]} 3. Bg2 {[%emt 0:00:06]} e6 {[%emt 0:00:04]} 4. O-O {[%emt 0:00:11]} Be7 {[%emt 0:00:02]} 5. d3 {[%emt 0:00:18]} O-O {[%emt 0:00:05]} 6. Nbd2 {[%emt 0:00:08]} a5 {[%emt 0:00:07]} 7. e4 {[%emt 0:00:38]} a4 {[%emt 0:00:08]} 8. a3 {[%emt 0:00:05]} c5 {[%emt 0:00:06]} 9. Re1 {[%emt 0:00:13]} Nc6 {[%emt 0:00:19]} 10. e5 {[%emt 0:00:26]} Nd7 {[%emt 0:00:06]} 11. Nf1 {[%emt 0:00:20]} Ra6 {[%emt 0:00:09]} 12. h4 {[%emt 0:01:35]} f6 {[%emt 0:00:54]} 13. exf6 {[%emt 0:01:51]} Nxf6 {[%emt 0:00:13]} 14. Bh3 {[%emt 0:00:20]} Bd6 {[%emt 0:00:17]} 15. Bxe6+ {[%emt 0:06:46]} Bxe6 {[%emt 0:00:09]} 16. Rxe6 {[%emt 0:00:05]} Qd7 {[%emt 0:00:19]} 17. Re1 {[%emt 0:11:56]} Ng4 {[%emt 0:01:02]} 18. N1h2 {[%emt 0:15:58]} Nxf2 {[%emt 0:27:37]} 19. Kxf2 {[%emt 0:03:02]} Qh3 {[%emt 0:00:04]} 20. Kg1 {[%emt 0:01:06]} Nd4 {[%emt 0:01:07]} 21. Bf4 {[%emt 0:14:12]} Bxf4 {[%emt 0:00:43]} 22. gxf4 {[%emt 0:00:24]} Rg6+ {[%emt 0:04:00]} 23. Ng5 {[%emt 0:00:15]} Qxh4 {[%emt 0:07:04]} 24. Kh1 {[%emt 0:12:31]} Qxf4 {[%emt 0:01:30]} 25. Nxh7 {[%emt 0:13:24]} Rh6 {[%emt 0:01:41]} 26. Nf6+ {[%emt 0:05:02]} Rfxf6 {[%emt 0:00:30]} 0-1

[Event "French Top 16-A 2024"]
[Site "Chartres"]
[Date "2024.06.05"]
[Round "7.7"]
[White "Loiseau, Quentin"]
[Black "Migot, Tangi"]
[Result "1-0"]
[ECO "B44"]
[WhiteElo "2411"]
[BlackElo "2326"]
[Annotator "RC"]
[PlyCount "59"]
[EventDate "2024.06.01"]
[EventType "team-tourn"]
[EventCountry "FRA"]
[SourceTitle "playchess.com"]
[Source "ChessBase"]
[SourceQuality "1"]
[TimeControl "40/5400+30:1800+30"]

1. e4 {[%emt 0:00:10]} c5 {[%emt 0:00:38]} 2. Nf3 {[%emt 0:00:11]} e6 {[%emt 0:00:08]} 3. d4 {[%emt 0:00:18]} cxd4 {[%emt 0:00:08]} 4. Nxd4 {[%emt 0:00:06]} Nc6 {[%emt 0:00:45]} 5. Bf4 {[%emt 0:00:47]} d6 {[%emt 0:00:50]} 6. Nxc6 {[%emt 0:00:37]} bxc6 {[%emt 0:00:05]} 7. c4 {[%emt 0:00:06]} e5 {[%emt 0:02:31]} 8. Be3 {[%emt 0:00:31]} Nf6 {[%emt 0:00:09]} 9. Nc3 {[%emt 0:00:11]} Be7 {[%emt 0:00:54]} 10. Be2 {[%emt 0:01:18]} Be6 {[%emt 0:02:07]} 11. O-O {[%emt 0:01:21]} O-O {[%emt 1:27:45]} 12. b4 {[%emt 0:02:20]} Qb8 {[%emt 0:00:00]} 13. Rb1 {[%emt 0:09:46]} Rd8 {[%emt 0:00:00]} 14. b5 {[%emt 0:14:29]} Qc8 {[%emt 0:00:00]} 15. bxc6 {[%emt 0:10:52]} Qxc6 {[%emt 0:00:00]} 16. Nd5 {[%emt 0:00:05]} Bxd5 {[%emt 0:00:00]} 17. cxd5 {[%emt 0:00:46]} Qc7 {[%emt 0:00:00]} 18. Qa4 {[%emt 0:02:03]} Rdb8 {[%emt 0:00:00]} 19. Bb5 {[%emt 0:05:50]} Bd8 {[%emt 0:00:00]} 20. Rbc1 {[%emt 0:04:42]} Qa5 {[%emt 0:00:00]} 21. Qxa5 {[%emt 0:00:06]} Bxa5 {[%emt 0:00:00]} 22. Bc6 {[%emt 0:00:05]} Nxe4 {[%emt 0:00:00]} 23. Bxa8 {[%emt 0:01:28]} Rxa8 {[%emt 0:00:00]} 24. Rc6 {[%emt 0:01:22]} f5 {[%emt 0:00:00]} 25. Rfc1 {[%emt 0:04:50]} Kf7 {[%emt 0:00:00]} 26. Ra6 {[%emt 0:00:59]} Bb4 {[%emt 0:00:00]} 27. a3 {[%emt 0:02:09]} f4 {[%emt 0:00:00]} 28. axb4 {[%emt 0:01:44]} fxe3 {[%emt 0:00:00]} 29. fxe3 {[%emt 0:00:32]} Rb8 {[%emt 0:00:00]} 30. Rc4 {[%emt 0:00:59]} 1-0

[Event "French Top 16-A 2024"]
[Site "Chartres"]
[Date "2024.06.05"]
[Round "7.7"]
[White "Malassagne, Raphael"]
[Black "Hirth, Julien"]
[Result "1/2-1/2"]
[ECO "A49"]
[WhiteElo "2260"]
[BlackElo "2063"]
[Annotator "RC"]
[PlyCount "103"]
[EventDate "2024.06.01"]
[EventType "team-tourn"]
[EventCountry "FRA"]
[SourceTitle "playchess.com"]
[Source "ChessBase"]
[SourceQuality "1"]
[TimeControl "40/5400+30:1800+30"]

1. Nf3 {[%emt 0:00:02]} Nf6 {[%emt 0:01:45]} 2. g3 {[%emt 0:00:13]} g6 {[%emt 0:06:36]} 3. Bg2 {[%emt 0:00:13]} Bg7 {[%emt 0:00:05]} 4. O-O {[%emt 0:00:07]} O-O {[%emt 0:00:10]} 5. d4 {[%emt 0:01:11]} d6 {[%emt 0:00:28]} 6. b3 {[%emt 0:00:42]} b5 {[%emt 0:00:48]} 7. Bb2 {[%emt 0:17:01]} Bb7 {[%emt 0:00:11]} 8. c4 {[%emt 0:02:46]} bxc4 {[%emt 0:00:39]} 9. bxc4 {[%emt 0:06:57]} Nbd7 {[%emt 0:00:13]} 10. e3 {[%emt 0:10:15]} Rb8 {[%emt 0:01:40]} 11. Qc1 {[%emt 0:04:19]} Ne4 {[%emt 0:04:26]} 12. Nfd2 {[%emt 0:04:14]} Nxd2 {[%emt 0:01:38]} 13. Nxd2 {[%emt 0:00:19]} Bxg2 {[%emt 0:00:32]} 14. Kxg2 {[%emt 0:00:04]} c5 {[%emt 0:00:44]} 15. Rb1 {[%emt 0:10:17]} Qa5 {[%emt 0:12:22]} 16. dxc5 {[%emt 0:08:13]} Bxb2 {[%emt 0:05:39]} 17. Rxb2 {[%emt 0:00:05]} Nxc5 {[%emt 0:00:23]} 18. Rxb8 {[%emt 0:06:27]} Rxb8 {[%emt 0:00:16]} 19. Qc2 {[%emt 0:00:04]} Qc7 {[%emt 0:17:13]} 20. Rb1 {[%emt 0:03:28]} Rxb1 {[%emt 0:01:33]} 21. Qxb1 {[%emt 0:00:40]} Qc6+ {[%emt 0:12:37]} 22. Kg1 {[%emt 0:00:06]} Kg7 {[%emt 0:04:19]} 23. h4 {[%emt 0:00:47]} Qb7 {[%emt 0:03:13]} 24. Qa1+ {[%emt 0:02:12]} e5 {[%emt 0:00:31]} 25. Qc3 {[%emt 0:01:13]} Qd7 {[%emt 0:04:54]} 26. Kg2 {[%emt 0:05:17]} Qf5 {[%emt 0:01:09]} 27. f3 {[%emt 0:02:57]} Qd3 {[%emt 0:01:32]} 28. Qxd3 {[%emt 0:00:26]} Nxd3 {[%emt 0:00:05]} 29. Ne4 {[%emt 0:01:13]} Nb4 {[%emt 0:11:04]} 30. Nxd6 {[%emt 0:03:07]} Nxa2 {[%emt 0:01:32]} 31. c5 {[%emt 0:00:25]} Nb4 {[%emt 0:00:25]} 32. Nc4 {[%emt 0:02:05]} Kf6 {[%emt 0:01:02]} 33. Kf1 {[%emt 0:01:06]} Ke6 {[%emt 0:00:29]} 34. e4 {[%emt 0:00:05]} f6 {[%emt 0:01:03]} 35. Ke2 {[%emt 0:03:03]} Na6 {[%emt 0:03:20]} 36. c6 {[%emt 0:01:06]} Nb4 {[%emt 0:00:09]} 37. c7 {[%emt 0:00:09]} Kd7 {[%emt 0:00:07]} 38. Nd6 {[%emt 0:00:11]} Kxc7 {[%emt 0:00:08]} 39. Ne8+ {[%emt 0:00:04]} Kc6 {[%emt 0:01:52]} 40. Nxf6 {[%emt 0:00:04]} Kc5 {[%emt 0:02:54]} 41. Kd2 {[%emt 0:08:00]} Kd4 {[%emt 0:01:32]} 42. Nxh7 {[%emt 0:13:03]} a5 {[%emt 0:00:22]} 43. Nf6 {[%emt 0:06:54]} a4 {[%emt 0:02:01]} 44. Nd5 {[%emt 0:00:16]} Nxd5 {[%emt 0:16:15]} 45. exd5 {[%emt 0:00:06]} Kxd5 {[%emt 0:00:05]} 46. Kc3 {[%emt 0:02:13]} e4 {[%emt 0:02:52]} 47. fxe4+ {[%emt 0:00:05]} Kxe4 {[%emt 0:00:03]} 48. g4 {[%emt 0:00:06]} Kf4 {[%emt 0:00:06]} 49. h5 {[%emt 0:00:03]} gxh5 {[%emt 0:00:09]} 50. gxh5 {[%emt 0:00:04]} Kg5 {[%emt 0:00:04]} 51. Kb4 {[%emt 0:00:05]} Kxh5 {[%emt 0:00:04]} 52. Kxa4 {[%emt 0:00:04]} 1/2-1/2